[Event "*** Titled Tuesday Blitz"]
[Site "Chess.com"]
[Date "2020.05.19"]
[Round "4"]
[White "stoleriu"]
[Black "ChocolateRoses"]
[Result "1-0"]
[WhiteElo "2559"]
[BlackElo "2267"]
[TimeControl "180+1"]
[EndTime "12:41:32 PDT"]
[Termination "stoleriu won by checkmate"]

1. e4 {[%clk 0:03:00.9]} 1... e6 {[%clk 0:02:59.5]} 2. d4 {[%clk 0:03:00.6]}
2... d5 {[%clk 0:02:57.5]} 3. Nc3 {[%clk 0:03:01.1]} 3... Bb4 {[%clk 0:02:55.6]}
4. exd5 {[%clk 0:03:00.1]} 4... exd5 {[%clk 0:02:54.8]} 5. Bd3 {[%clk
0:03:00.7]} 5... Nc6 {[%clk 0:02:54.6]} 6. a3 {[%clk 0:03:01.2]} 6... Bxc3+
{[%clk 0:02:53.8]} 7. bxc3 {[%clk 0:03:02.1]} 7... Nge7 {[%clk 0:02:53]} 8. Qh5
{[%clk 0:03:02.3]} 8... Be6 {[%clk 0:02:53.1]} 9. Ne2 {[%clk 0:03:01.6]} 9...
Qd7 {[%clk 0:02:47.3]} 10. Rb1 {[%clk 0:02:58.1]} 10... b6 {[%clk 0:02:23.9]}
11. O-O {[%clk 0:02:54.2]} 11... O-O-O {[%clk 0:02:02.6]} 12. Ng3 {[%clk
0:02:38.3]} 12... g6 {[%clk 0:01:55.4]} 13. Qh4 {[%clk 0:02:30.1]} 13... Nf5
{[%clk 0:01:14.9]} 14. Qf6 {[%clk 0:02:23.1]} 14... Nxg3 {[%clk 0:01:05]} 15.
hxg3 {[%clk 0:02:24]} 15... Bf5 {[%clk 0:00:55.3]} 16. Bb5 {[%clk 0:01:27.7]}
16... Be6 {[%clk 0:00:43.7]} 17. a4 {[%clk 0:01:27.3]} 17... Qe7 {[%clk
0:00:34.5]} 18. Bg5 {[%clk 0:01:25.5]} 18... Qd6 {[%clk 0:00:29.5]} 19. Bf4
{[%clk 0:01:18.4]} 19... Qe7 {[%clk 0:00:19.5]} 20. Qxe7 {[%clk 0:01:15.8]}
20... Nxe7 {[%clk 0:00:18.8]} 21. Bg5 {[%clk 0:01:16.4]} 21... Rd7 {[%clk
0:00:10.6]} 22. Bxd7+ {[%clk 0:01:16.3]} 22... Kxd7 {[%clk 0:00:11.5]} 23. Bxe7
{[%clk 0:01:07.1]} 23... Kxe7 {[%clk 0:00:11.5]} 24. Rfe1 {[%clk 0:01:08]} 24...
Kd7 {[%clk 0:00:11.5]} 25. a5 {[%clk 0:01:07.7]} 25... Bf5 {[%clk 0:00:10.6]}
26. Re2 {[%clk 0:01:03.1]} 26... Rc8 {[%clk 0:00:05.5]} 27. f3 {[%clk
0:01:01.4]} 27... Be6 {[%clk 0:00:04.6]} 28. Kf2 {[%clk 0:00:59.2]} 28... Kd6
{[%clk 0:00:04.3]} 29. Rh1 {[%clk 0:00:55.3]} 29... h5 {[%clk 0:00:04.4]} 30.
Ra1 {[%clk 0:00:52.6]} 30... Rb8 {[%clk 0:00:03.8]} 31. axb6 {[%clk 0:00:52.3]}
31... axb6 {[%clk 0:00:04.7]} 32. Ra7 {[%clk 0:00:48.7]} 32... Rc8 {[%clk
0:00:04.7]} 33. Re1 {[%clk 0:00:47.7]} 33... Rd8 {[%clk 0:00:04.5]} 34. Rb1
{[%clk 0:00:46.9]} 34... Rd7 {[%clk 0:00:05]} 35. Rb2 {[%clk 0:00:45.6]} 35...
Kc6 {[%clk 0:00:05.4]} 36. Ra8 {[%clk 0:00:43.4]} 36... Kd6 {[%clk 0:00:05.7]}
37. Re8 {[%clk 0:00:42.5]} 37... Kc6 {[%clk 0:00:05.9]} 38. Ke3 {[%clk
0:00:36.3]} 38... Kd6 {[%clk 0:00:06.2]} 39. Kf4 {[%clk 0:00:36.6]} 39... Bf5
{[%clk 0:00:05.1]} 40. g4 {[%clk 0:00:34.8]} 40... Be6 {[%clk 0:00:05]} 41. gxh5
{[%clk 0:00:34.6]} 41... gxh5 {[%clk 0:00:05.9]} 42. Rh8 {[%clk 0:00:30.9]}
42... Re7 {[%clk 0:00:04.5]} 43. Rxh5 {[%clk 0:00:30.7]} 43... Bd7 {[%clk
0:00:04.8]} 44. Rh6+ {[%clk 0:00:29.6]} 44... Be6 {[%clk 0:00:05.4]} 45. g4
{[%clk 0:00:27.8]} 45... Re8 {[%clk 0:00:05.6]} 46. Kg3 {[%clk 0:00:27.8]} 46...
Rg8 {[%clk 0:00:05.7]} 47. Rb1 {[%clk 0:00:26.8]} 47... Rg7 {[%clk 0:00:06]} 48.
Re1 {[%clk 0:00:26.9]} 48... Kd7 {[%clk 0:00:05.8]} 49. Re5 {[%clk 0:00:26.7]}
49... Kc6 {[%clk 0:00:05.1]} 50. g5 {[%clk 0:00:24]} 50... Kb5 {[%clk
0:00:05.1]} 51. f4 {[%clk 0:00:24.4]} 51... Kc4 {[%clk 0:00:05.5]} 52. f5 {[%clk
0:00:21.7]} 52... Bc8 {[%clk 0:00:03.8]} 53. Rc6+ {[%clk 0:00:21]} 53... Kb5
{[%clk 0:00:03.2]} 54. Rxc7 {[%clk 0:00:21.6]} 54... Rxg5+ {[%clk 0:00:03.1]}
55. Kf4 {[%clk 0:00:22]} 55... Rxf5+ {[%clk 0:00:02]} 56. Rxf5 {[%clk
0:00:22.9]} 56... Bxf5 {[%clk 0:00:02.4]} 57. Kxf5 {[%clk 0:00:23.8]} 57... Ka4
{[%clk 0:00:02.4]} 58. Ke5 {[%clk 0:00:22.4]} 58... b5 {[%clk 0:00:03.3]} 59.
Kxd5 {[%clk 0:00:22.7]} 59... b4 {[%clk 0:00:04.2]} 60. cxb4 {[%clk 0:00:23.2]}
60... Kxb4 {[%clk 0:00:04.4]} 61. Rxf7 {[%clk 0:00:20.7]} 61... Ka3 {[%clk
0:00:05.3]} 62. Rb7 {[%clk 0:00:20.6]} 62... Ka2 {[%clk 0:00:05.4]} 63. Kc4
{[%clk 0:00:21]} 63... Ka1 {[%clk 0:00:05.9]} 64. Kc3 {[%clk 0:00:19.9]} 64...
Ka2 {[%clk 0:00:06.8]} 65. Kd2 {[%clk 0:00:19.9]} 65... Ka1 {[%clk 0:00:07.7]}
66. c4 {[%clk 0:00:20.1]} 66... Ka2 {[%clk 0:00:08.6]} 67. Kc3 {[%clk
0:00:20.6]} 67... Ka3 {[%clk 0:00:09.5]} 68. Ra7# {[%clk 0:00:20.6]} 1-0

[Event "*** Titled Tuesday Blitz"]
[Site "Chess.com"]
[Date "2020.05.19"]
[Round "4"]
[White "CheckThis4"]
[Black "Manukyan_Artak"]
[Result "0-1"]
[WhiteElo "2473"]
[BlackElo "2310"]
[TimeControl "180+1"]
[EndTime "12:41:32 PDT"]
[Termination "Manukyan_Artak won on time"]

1. e4 {[%clk 0:03:00.9]} 1... c6 {[%clk 0:02:59.1]} 2. d4 {[%clk 0:03:00.3]}
2... d5 {[%clk 0:02:59.6]} 3. e5 {[%clk 0:03:00.9]} 3... Bf5 {[%clk 0:02:58.9]}
4. Nf3 {[%clk 0:03:00.7]} 4... e6 {[%clk 0:02:59.1]} 5. Be2 {[%clk 0:03:01]}
5... h6 {[%clk 0:02:56.6]} 6. O-O {[%clk 0:03:00.8]} 6... Ne7 {[%clk 0:02:55.9]}
7. Nbd2 {[%clk 0:02:57.9]} 7... Nd7 {[%clk 0:02:55.8]} 8. Re1 {[%clk 0:02:57.2]}
8... Nc8 {[%clk 0:02:52.9]} 9. c4 {[%clk 0:02:56.5]} 9... dxc4 {[%clk
0:02:52.5]} 10. Nxc4 {[%clk 0:02:56.5]} 10... Ncb6 {[%clk 0:02:51.4]} 11. Na5
{[%clk 0:02:53.7]} 11... Qc7 {[%clk 0:02:49.7]} 12. Bd2 {[%clk 0:02:51.9]} 12...
Be7 {[%clk 0:02:45.2]} 13. Rc1 {[%clk 0:02:44.3]} 13... O-O {[%clk 0:02:44.1]}
14. Qb3 {[%clk 0:02:33.2]} 14... Rab8 {[%clk 0:02:37.5]} 15. Bb4 {[%clk
0:02:18.1]} 15... Bxb4 {[%clk 0:02:34.1]} 16. Qxb4 {[%clk 0:02:19]} 16... Nd5
{[%clk 0:02:32.9]} 17. Qa3 {[%clk 0:02:19.1]} 17... N7b6 {[%clk 0:02:25.9]} 18.
Nd2 {[%clk 0:02:06.9]} 18... Nf4 {[%clk 0:02:22.5]} 19. Ndc4 {[%clk 0:01:58]}
19... Nxe2+ {[%clk 0:02:20.4]} 20. Rxe2 {[%clk 0:01:57.4]} 20... Rfd8 {[%clk
0:02:11.5]} 21. Nd6 {[%clk 0:01:56.5]} 21... Bg6 {[%clk 0:02:09.9]} 22. h4
{[%clk 0:01:49.7]} 22... Rd7 {[%clk 0:01:58.4]} 23. b4 {[%clk 0:01:34]} 23...
Rxd6 {[%clk 0:01:45.1]} 24. exd6 {[%clk 0:01:32.5]} 24... Qxd6 {[%clk 0:01:46]}
25. Nc4 {[%clk 0:01:19.5]} 25... Nxc4 {[%clk 0:01:37.3]} 26. Rxc4 {[%clk
0:01:19.3]} 26... a6 {[%clk 0:01:36.7]} 27. g3 {[%clk 0:01:13.6]} 27... Rd8
{[%clk 0:01:34.4]} 28. Qc3 {[%clk 0:01:11.6]} 28... Qd5 {[%clk 0:01:32.3]} 29.
Re5 {[%clk 0:01:10.7]} 29... Qd7 {[%clk 0:01:31]} 30. a4 {[%clk 0:01:09.5]}
30... Ra8 {[%clk 0:01:21.9]} 31. h5 {[%clk 0:01:08.9]} 31... Bh7 {[%clk
0:01:20.7]} 32. a5 {[%clk 0:00:57.1]} 32... Rd8 {[%clk 0:01:17]} 33. Qe3 {[%clk
0:00:54.1]} 33... Qc8 {[%clk 0:01:08.2]} 34. Qf4 {[%clk 0:00:49]} 34... Rd7
{[%clk 0:01:06.4]} 35. Re3 {[%clk 0:00:46.2]} 35... Qd8 {[%clk 0:01:05.4]} 36.
Rf3 {[%clk 0:00:44.7]} 36... Qe7 {[%clk 0:00:59.7]} 37. Rc5 {[%clk 0:00:44.2]}
37... Bb1 {[%clk 0:00:51.8]} 38. Qb8+ {[%clk 0:00:24.1]} 38... Rd8 {[%clk
0:00:49.2]} 39. Qa7 {[%clk 0:00:20.6]} 39... Be4 {[%clk 0:00:41]} 40. Rf4 {[%clk
0:00:19.8]} 40... Rxd4 {[%clk 0:00:32.9]} 41. Rc1 {[%clk 0:00:11.2]} 41... e5
{[%clk 0:00:29.8]} 42. Rh4 {[%clk 0:00:08.1]} 42... Qd6 {[%clk 0:00:19.2]} 43.
Qxb7 {[%clk 0:00:07.1]} 43... Rd1+ {[%clk 0:00:18.7]} 44. Kh2 {[%clk 0:00:05.1]}
44... Rxc1 {[%clk 0:00:17.4]} 45. Rxe4 {[%clk 0:00:05.2]} 45... Qd5 {[%clk
0:00:16.5]} 46. Qb8+ {[%clk 0:00:05.5]} 46... Kh7 {[%clk 0:00:16.2]} 47. Qxe5
{[%clk 0:00:06.4]} 47... Qxe5 {[%clk 0:00:13.5]} 48. Rxe5 {[%clk 0:00:06.7]}
48... Rc4 {[%clk 0:00:13.6]} 49. Re7 {[%clk 0:00:06.1]} 49... Rxb4 {[%clk
0:00:11.5]} 50. Ra7 {[%clk 0:00:04.6]} 50... c5 {[%clk 0:00:10.4]} 51. Rxa6
{[%clk 0:00:04.6]} 51... c4 {[%clk 0:00:09.4]} 52. Rc6 {[%clk 0:00:05]} 52...
Rb5 {[%clk 0:00:09.1]} 0-1

[Event "*** Titled Tuesday Blitz"]
[Site "Chess.com"]
[Date "2020.05.19"]
[Round "4"]
[White "Megagigahiper3345"]
[Black "jerry_77"]
[Result "0-1"]
[WhiteElo "2617"]
[BlackElo "2478"]
[TimeControl "180+1"]
[EndTime "12:41:33 PDT"]
[Termination "jerry_77 won by checkmate"]

1. d4 {[%clk 0:03:00.9]} 1... Nf6 {[%clk 0:02:53.9]} 2. c4 {[%clk 0:03:01.8]}
2... e6 {[%clk 0:02:53.8]} 3. Nf3 {[%clk 0:03:02.2]} 3... d5 {[%clk 0:02:51.1]}
4. Nc3 {[%clk 0:03:01.9]} 4... Bb4 {[%clk 0:02:50.9]} 5. Qa4+ {[%clk 0:03:01.4]}
5... Nc6 {[%clk 0:02:50.7]} 6. e3 {[%clk 0:03:02.3]} 6... O-O {[%clk 0:02:47.6]}
7. Qc2 {[%clk 0:03:02.9]} 7... Re8 {[%clk 0:02:45.7]} 8. a3 {[%clk 0:02:59.6]}
8... Bxc3+ {[%clk 0:02:45.1]} 9. Qxc3 {[%clk 0:02:59.5]} 9... dxc4 {[%clk
0:02:45.6]} 10. Bxc4 {[%clk 0:02:58.8]} 10... a6 {[%clk 0:02:39]} 11. O-O {[%clk
0:02:57.6]} 11... Ne7 {[%clk 0:02:39.1]} 12. b4 {[%clk 0:02:52.3]} 12... b5
{[%clk 0:02:37]} 13. Bd3 {[%clk 0:02:46.3]} 13... Bb7 {[%clk 0:02:37]} 14. Qc2
{[%clk 0:02:45.6]} 14... Ng6 {[%clk 0:02:35.3]} 15. e4 {[%clk 0:02:03.8]} 15...
e5 {[%clk 0:02:15.6]} 16. dxe5 {[%clk 0:01:51.1]} 16... Nxe5 {[%clk 0:02:14.4]}
17. Nxe5 {[%clk 0:01:51]} 17... Rxe5 {[%clk 0:02:15.3]} 18. Bb2 {[%clk
0:01:49.9]} 18... Re6 {[%clk 0:01:28.4]} 19. Rad1 {[%clk 0:01:35.2]} 19... Ng4
{[%clk 0:01:04.8]} 20. h3 {[%clk 0:01:15.3]} 20... Ne5 {[%clk 0:01:03.8]} 21.
Qc3 {[%clk 0:00:58.6]} 21... Nf3+ {[%clk 0:00:39.6]} 22. gxf3 {[%clk 0:00:31.7]}
22... Rg6+ {[%clk 0:00:29.7]} 23. Kh2 {[%clk 0:00:31.5]} 23... Qh4 {[%clk
0:00:18.1]} 24. Qe5 {[%clk 0:00:28.2]} 24... h6 {[%clk 0:00:07]} 25. Bc1 {[%clk
0:00:13.3]} 25... Bc8 {[%clk 0:00:07]} 26. Qf5 {[%clk 0:00:03.7]} 26... Bxf5
{[%clk 0:00:06.5]} 27. exf5 {[%clk 0:00:04.6]} 27... Rd6 {[%clk 0:00:06.4]} 28.
Be4 {[%clk 0:00:05.1]} 28... Rad8 {[%clk 0:00:06.1]} 29. Rxd6 {[%clk 0:00:04.9]}
29... cxd6 {[%clk 0:00:07]} 30. Be3 {[%clk 0:00:05.4]} 30... d5 {[%clk
0:00:07.4]} 31. Bd3 {[%clk 0:00:06]} 31... d4 {[%clk 0:00:07.8]} 32. Bd2 {[%clk
0:00:06.5]} 32... Kf8 {[%clk 0:00:07.9]} 33. Kg2 {[%clk 0:00:06]} 33... Kg8
{[%clk 0:00:08.2]} 34. Re1 {[%clk 0:00:06.4]} 34... Qf6 {[%clk 0:00:08.2]} 35.
Rc1 {[%clk 0:00:06.4]} 35... Qd6 {[%clk 0:00:08.3]} 36. Rc5 {[%clk 0:00:06.2]}
36... Qd7 {[%clk 0:00:08.6]} 37. h4 {[%clk 0:00:06]} 37... Rc8 {[%clk
0:00:09.1]} 38. Re5 {[%clk 0:00:06.3]} 38... Re8 {[%clk 0:00:09]} 39. Rc5 {[%clk
0:00:06.8]} 39... f6 {[%clk 0:00:09.2]} 40. h5 {[%clk 0:00:06.2]} 40... Rc8
{[%clk 0:00:09.3]} 41. Kg3 {[%clk 0:00:03.2]} 41... Rxc5 {[%clk 0:00:09.2]} 42.
bxc5 {[%clk 0:00:04.1]} 42... Qc7+ {[%clk 0:00:09.7]} 43. Bf4 {[%clk 0:00:03.9]}
43... Qxc5 {[%clk 0:00:10.6]} 44. Kg4 {[%clk 0:00:03.7]} 44... Qxa3 {[%clk
0:00:10.6]} 45. Be4 {[%clk 0:00:04]} 45... Qc5 {[%clk 0:00:10.9]} 46. Bd2 {[%clk
0:00:03.9]} 46... b4 {[%clk 0:00:11.2]} 47. Bd3 {[%clk 0:00:04.3]} 47... b3
{[%clk 0:00:11.6]} 48. Kh4 {[%clk 0:00:04.3]} 48... b2 {[%clk 0:00:11.7]} 49. f4
{[%clk 0:00:04.9]} 49... a5 {[%clk 0:00:11.9]} 50. Kg4 {[%clk 0:00:04.7]} 50...
a4 {[%clk 0:00:12.4]} 51. Bb1 {[%clk 0:00:05.3]} 51... a3 {[%clk 0:00:12.6]} 52.
Ba2+ {[%clk 0:00:05.8]} 52... Kh7 {[%clk 0:00:12.6]} 53. Bb1 {[%clk 0:00:06.7]}
53... Qc4 {[%clk 0:00:12.5]} 54. Be4 {[%clk 0:00:06.6]} 54... Qe2+ {[%clk
0:00:11.6]} 55. Bf3 {[%clk 0:00:04.9]} 55... Qxd2 {[%clk 0:00:11.8]} 56. Kh4
{[%clk 0:00:05.6]} 56... b1=Q {[%clk 0:00:12]} 57. Kg4 {[%clk 0:00:05.9]} 57...
a2 {[%clk 0:00:12.3]} 58. Bg2 {[%clk 0:00:06]} 58... a1=Q {[%clk 0:00:12.5]} 59.
Kh4 {[%clk 0:00:06.5]} 59... Qxf2+ {[%clk 0:00:12.4]} 60. Kh3 {[%clk 0:00:06.3]}
60... Qd3+ {[%clk 0:00:11.9]} 61. Kg4 {[%clk 0:00:06]} 61... Qdg3# {[%clk
0:00:12]} 0-1

[Event "*** Titled Tuesday Blitz"]
[Site "Chess.com"]
[Date "2020.05.19"]
[Round "4"]
[White "K_A_S_T_O_R"]
[Black "sari07"]
[Result "1-0"]
[WhiteElo "2725"]
[BlackElo "2443"]
[TimeControl "180+1"]
[EndTime "12:41:33 PDT"]
[Termination "K_A_S_T_O_R won by resignation"]

1. e4 {[%clk 0:03:00.9]} 1... e5 {[%clk 0:02:59.7]} 2. Nf3 {[%clk 0:03:00.8]}
2... Nc6 {[%clk 0:03:00.1]} 3. Bb5 {[%clk 0:03:01.3]} 3... a6 {[%clk 0:03:00]}
4. Ba4 {[%clk 0:03:01.7]} 4... Nf6 {[%clk 0:03:00.4]} 5. O-O {[%clk 0:03:02.3]}
5... Be7 {[%clk 0:02:59.4]} 6. Re1 {[%clk 0:03:02.7]} 6... b5 {[%clk 0:02:59.2]}
7. Bb3 {[%clk 0:03:03.3]} 7... O-O {[%clk 0:02:59.4]} 8. h3 {[%clk 0:03:03.2]}
8... Bb7 {[%clk 0:02:58.3]} 9. d3 {[%clk 0:03:03.1]} 9... d6 {[%clk 0:02:56.1]}
10. a3 {[%clk 0:02:59.7]} 10... Nb8 {[%clk 0:02:47.1]} 11. Nbd2 {[%clk 0:02:59]}
11... Nbd7 {[%clk 0:02:46.7]} 12. Nf1 {[%clk 0:02:59.4]} 12... Re8 {[%clk
0:02:44.9]} 13. Ng5 {[%clk 0:02:54.7]} 13... d5 {[%clk 0:02:38.5]} 14. exd5
{[%clk 0:02:49.1]} 14... Bxd5 {[%clk 0:02:37.5]} 15. Bxd5 {[%clk 0:02:42]} 15...
Nxd5 {[%clk 0:02:38.4]} 16. Nf3 {[%clk 0:02:38.2]} 16... Bf8 {[%clk 0:02:28.2]}
17. Ng3 {[%clk 0:02:38]} 17... g6 {[%clk 0:02:25.4]} 18. Bg5 {[%clk 0:02:33.2]}
18... f6 {[%clk 0:02:24.8]} 19. Bd2 {[%clk 0:02:32.8]} 19... c5 {[%clk 0:02:24]}
20. a4 {[%clk 0:02:30.1]} 20... f5 {[%clk 0:02:04.5]} 21. c3 {[%clk 0:02:23.5]}
21... Bg7 {[%clk 0:01:54]} 22. axb5 {[%clk 0:02:19.4]} 22... axb5 {[%clk
0:01:53.7]} 23. Qb3 {[%clk 0:02:19.7]} 23... Nb6 {[%clk 0:01:41.4]} 24. Rxa8
{[%clk 0:02:14.1]} 24... Qxa8 {[%clk 0:01:40.1]} 25. Qxb5 {[%clk 0:02:12.4]}
25... Qa4 {[%clk 0:01:08.7]} 26. Qxa4 {[%clk 0:01:58.5]} 26... Nxa4 {[%clk
0:01:09.6]} 27. b4 {[%clk 0:01:58.8]} 27... cxb4 {[%clk 0:01:05.1]} 28. cxb4
{[%clk 0:01:58.7]} 28... Nb2 {[%clk 0:01:04.8]} 29. d4 {[%clk 0:01:44.3]} 29...
e4 {[%clk 0:01:04.7]} 30. Ne5 {[%clk 0:01:44.5]} 30... Rb8 {[%clk 0:00:50.7]}
31. Nc6 {[%clk 0:01:32.8]} 31... Rb6 {[%clk 0:00:49.2]} 32. Rc1 {[%clk
0:01:31.7]} 32... Nd3 {[%clk 0:00:47.1]} 33. Rc4 {[%clk 0:01:30.9]} 33... Rb5
{[%clk 0:00:30.3]} 34. Ne2 {[%clk 0:01:25.4]} 34... Nb6 {[%clk 0:00:29.9]} 35.
Rc2 {[%clk 0:01:19]} 35... Nd5 {[%clk 0:00:29.9]} 36. Nc3 {[%clk 0:01:16.4]}
36... N5xb4 {[%clk 0:00:26.9]} 37. Nxb5 {[%clk 0:00:56.2]} 37... Nxc2 {[%clk
0:00:26.5]} 38. d5 {[%clk 0:00:56.4]} 38... Kf7 {[%clk 0:00:18.4]} 39. Nd8+
{[%clk 0:00:54.4]} 39... Ke8 {[%clk 0:00:16.9]} 40. Ne6 {[%clk 0:00:54.3]} 40...
Be5 {[%clk 0:00:16.4]} 41. f4 {[%clk 0:00:51.2]} 41... exf3 {[%clk 0:00:15.9]}
42. gxf3 {[%clk 0:00:51.8]} 42... Kd7 {[%clk 0:00:11.3]} 43. Nf8+ {[%clk
0:00:50.2]} 43... Ke7 {[%clk 0:00:08]} 44. Nxh7 {[%clk 0:00:50.7]} 44... Nf4
{[%clk 0:00:06.3]} 45. Bxf4 {[%clk 0:00:49.3]} 45... Bxf4 {[%clk 0:00:07.2]} 46.
Kf2 {[%clk 0:00:49.5]} 46... Nb4 {[%clk 0:00:04.9]} 47. d6+ {[%clk 0:00:47.3]}
47... Bxd6 {[%clk 0:00:04.4]} 48. Nxd6 {[%clk 0:00:46.4]} 48... Kxd6 {[%clk
0:00:05.3]} 49. Nf8 {[%clk 0:00:46.5]} 49... g5 {[%clk 0:00:05.5]} 50. Nh7
{[%clk 0:00:46.1]} 50... Nd3+ {[%clk 0:00:03.7]} 51. Kg3 {[%clk 0:00:44.8]}
51... Ke5 {[%clk 0:00:03.1]} 52. Nxg5 {[%clk 0:00:44.4]} 52... f4+ {[%clk
0:00:03.7]} 53. Kh4 {[%clk 0:00:43]} 53... Kf5 {[%clk 0:00:03.7]} 54. Ne4 {[%clk
0:00:42.2]} 54... Ne1 {[%clk 0:00:04]} 55. Nd2 {[%clk 0:00:42.1]} 55... Nd3
{[%clk 0:00:01.6]} 56. Kh5 {[%clk 0:00:41.8]} 56... Ne5 {[%clk 0:00:01.8]} 57.
h4 {[%clk 0:00:41.6]} 57... Nf7 {[%clk 0:00:02.1]} 58. Nc4 {[%clk 0:00:41.4]}
58... Ne5 {[%clk 0:00:02.6]} 59. Nxe5 {[%clk 0:00:41.2]} 59... Kxe5 {[%clk
0:00:03.5]} 60. Kg5 {[%clk 0:00:41.7]} 60... Kd4 {[%clk 0:00:03.3]} 61. Kxf4
{[%clk 0:00:41.6]} 1-0

[Event "*** Titled Tuesday Blitz"]
[Site "Chess.com"]
[Date "2020.05.19"]
[Round "4"]
[White "marcodobrikov"]
[Black "Goryachkina"]
[Result "0-1"]
[WhiteElo "2467"]
[BlackElo "2694"]
[TimeControl "180+1"]
[EndTime "12:41:34 PDT"]
[Termination "Goryachkina won by checkmate"]

1. e4 {[%clk 0:03:00.9]} 1... e6 {[%clk 0:02:59.3]} 2. d4 {[%clk 0:03:00.6]}
2... d5 {[%clk 0:02:58.9]} 3. Nc3 {[%clk 0:03:00.7]} 3... Bb4 {[%clk 0:02:57.9]}
4. e5 {[%clk 0:03:00.1]} 4... c5 {[%clk 0:02:57.5]} 5. a3 {[%clk 0:02:59.6]}
5... Ba5 {[%clk 0:02:57.7]} 6. b4 {[%clk 0:02:59.2]} 6... cxd4 {[%clk
0:02:57.5]} 7. Nce2 {[%clk 0:02:57.4]} 7... Bb6 {[%clk 0:02:43.4]} 8. Nxd4
{[%clk 0:02:53.9]} 8... Nc6 {[%clk 0:02:42.3]} 9. Bb5 {[%clk 0:02:42.9]} 9...
Bd7 {[%clk 0:02:39.7]} 10. Bxc6 {[%clk 0:02:41.9]} 10... Bxc6 {[%clk 0:02:37.8]}
11. Be3 {[%clk 0:02:39.7]} 11... Ne7 {[%clk 0:02:36.3]} 12. f4 {[%clk
0:02:38.9]} 12... O-O {[%clk 0:02:34]} 13. c3 {[%clk 0:02:37.6]} 13... Rc8
{[%clk 0:02:32.5]} 14. Nge2 {[%clk 0:02:36.3]} 14... a6 {[%clk 0:02:31]} 15. O-O
{[%clk 0:02:35.7]} 15... Bb5 {[%clk 0:02:27.9]} 16. Qd2 {[%clk 0:02:28.5]} 16...
Bxe2 {[%clk 0:02:21.4]} 17. Nxe2 {[%clk 0:02:28]} 17... Bxe3+ {[%clk 0:02:17.8]}
18. Qxe3 {[%clk 0:02:28.9]} 18... Nf5 {[%clk 0:02:17.6]} 19. Qd3 {[%clk
0:02:25.9]} 19... Qb6+ {[%clk 0:02:16.6]} 20. Kh1 {[%clk 0:02:22.4]} 20... Rc4
{[%clk 0:02:12.7]} 21. g4 {[%clk 0:02:17.5]} 21... Ne3 {[%clk 0:01:55]} 22. Rg1
{[%clk 0:02:17.4]} 22... Re4 {[%clk 0:01:48.1]} 23. Rg3 {[%clk 0:01:59.8]} 23...
Rc8 {[%clk 0:01:37.7]} 24. Nd4 {[%clk 0:01:47.4]} 24... Nc4 {[%clk 0:01:37.2]}
25. a4 {[%clk 0:01:40.6]} 25... a5 {[%clk 0:01:34.8]} 26. b5 {[%clk 0:01:35.1]}
26... Rxf4 {[%clk 0:01:23]} 27. Qe2 {[%clk 0:01:28.6]} 27... Re4 {[%clk
0:01:20.4]} 28. Qg2 {[%clk 0:01:22.5]} 28... Nxe5 {[%clk 0:01:18.7]} 29. g5
{[%clk 0:01:22.2]} 29... Ng6 {[%clk 0:01:15.3]} 30. Rf1 {[%clk 0:01:20.5]} 30...
Qd6 {[%clk 0:01:05.3]} 31. Qf2 {[%clk 0:01:09.6]} 31... Rf4 {[%clk 0:01:04.1]}
32. Rf3 {[%clk 0:01:09.7]} 32... Rxf3 {[%clk 0:00:59.5]} 33. Qxf3 {[%clk
0:01:10.6]} 33... Rf8 {[%clk 0:00:58.7]} 34. Qf2 {[%clk 0:01:02.8]} 34... Qe5
{[%clk 0:00:56.1]} 35. h4 {[%clk 0:01:01.2]} 35... Qe4+ {[%clk 0:00:55.2]} 36.
Kg1 {[%clk 0:00:34.6]} 36... Qg4+ {[%clk 0:00:52.9]} 37. Qg2 {[%clk 0:00:33.7]}
37... Qxg2+ {[%clk 0:00:52.7]} 38. Kxg2 {[%clk 0:00:34.6]} 38... Nxh4+ {[%clk
0:00:52.8]} 39. Kg3 {[%clk 0:00:34.4]} 39... Ng6 {[%clk 0:00:52.4]} 40. Rc1
{[%clk 0:00:32.9]} 40... Rc8 {[%clk 0:00:51.5]} 41. Nb3 {[%clk 0:00:30.9]} 41...
b6 {[%clk 0:00:51.6]} 42. Nd4 {[%clk 0:00:31]} 42... Ne7 {[%clk 0:00:50.8]} 43.
Kf4 {[%clk 0:00:29.5]} 43... Ng6+ {[%clk 0:00:44.9]} 44. Kg3 {[%clk 0:00:29.7]}
44... Rc4 {[%clk 0:00:44.6]} 45. Nc6 {[%clk 0:00:28.8]} 45... Rxa4 {[%clk
0:00:42.4]} 46. c4 {[%clk 0:00:27.2]} 46... Rxc4 {[%clk 0:00:36]} 47. Rxc4
{[%clk 0:00:27.1]} 47... dxc4 {[%clk 0:00:36.1]} 48. Nxa5 {[%clk 0:00:28]} 48...
bxa5 {[%clk 0:00:34.2]} 49. Kf3 {[%clk 0:00:27.4]} 49... Ne7 {[%clk 0:00:33.2]}
50. Ke4 {[%clk 0:00:28.3]} 50... a4 {[%clk 0:00:31.7]} 51. Kd4 {[%clk
0:00:29.2]} 51... a3 {[%clk 0:00:31.6]} 52. Kc3 {[%clk 0:00:30.1]} 52... Nc8
{[%clk 0:00:31.3]} 53. Kxc4 {[%clk 0:00:30]} 53... a2 {[%clk 0:00:31.3]} 54. g6
{[%clk 0:00:12.3]} 54... a1=Q {[%clk 0:00:29.4]} 55. gxf7+ {[%clk 0:00:11.3]}
55... Kxf7 {[%clk 0:00:29.2]} 56. b6 {[%clk 0:00:11.3]} 56... Nxb6+ {[%clk
0:00:28.8]} 57. Kc5 {[%clk 0:00:11]} 57... Qa5+ {[%clk 0:00:28.2]} 58. Kd6
{[%clk 0:00:11.9]} 58... Nc4+ {[%clk 0:00:27.7]} 59. Kd7 {[%clk 0:00:11.2]}
59... Qa7+ {[%clk 0:00:25.2]} 60. Kc8 {[%clk 0:00:10.3]} 60... Nb6+ {[%clk
0:00:22.6]} 61. Kd8 {[%clk 0:00:10.1]} 61... Qe7# {[%clk 0:00:22.3]} 0-1